bitfinex-derivatives/quotes_BTCF0:USTF0_20241009
["timestamp","ask_amount","ask_price","bid_price","bid_amount"]
[1728492526977,3.92081426,61796.0,61795.0,0.0004]
[1728492527376,3.83985126,61796.0,61787.0,0.01619]
[1728492527576,0.722174,61788.0,61787.0,0.00619]
[1728492527780,0.842174,61788.0,61787.0,0.00619]
[1728492527978,1.34534526,61788.0,61787.0,0.00619]
[1728492528180,2.84534526,61788.0,61787.0,0.00619]
[1728492528677,2.84534526,61788.0,61787.0,0.00719]
[1728492529677,2.84634526,61788.0,61787.0,0.00719]
[1728492529890,2.85754419,61788.0,61787.0,0.00719]
[1728492530090,2.85754419,61788.0,61787.0,0.00619]
[1728492530286,2.77749451,61788.0,61787.0,0.00719]
[1728492530987,3.22398851,61788.0,61787.0,0.001]
[1728492531189,3.22398851,61788.0,61773.0,0.00242774]
[1728492531190,2.48369451,61788.0,61773.0,0.00242774]
[1728492531393,0.081392,61774.0,61773.0,0.00242774]
[1728492531789,0.58076326,61774.0,61773.0,0.00242774]
[1728492532678,0.080995,61772.0,61771.0,0.080996]
[1728492532878,0.080995,61772.0,61770.0,0.0004]
[1728492532879,0.080996,61771.0,61770.0,0.0004]
[1728492534192,0.081996,61771.0,61770.0,0.0004]
[1728492535386,0.001,61771.0,61770.0,0.081398]
[1728492535692,0.081996,61771.0,61770.0,0.081398]
[1728492535898,0.082996,61771.0,61770.0,0.081398]
[1728492538191,2.23534781,61775.0,61770.0,0.08068814]
[1728492538388,0.270996,61771.0,61770.0,0.0004]
[1728492538700,0.270996,61771.0,61770.0,0.12210758]
[1728492539199,0.270996,61771.0,61770.0,0.08048799]
[1728492539498,0.270996,61771.0,61770.0,0.12113538]
[1728492540203,0.271996,61771.0,61770.0,0.12113538]
[1728492541499,0.271996,61771.0,61770.0,0.21748115]
[1728492542391,0.001,61771.0,61770.0,0.12113538]
[1728492542593,0.001,61771.0,61770.0,0.20213338]
[1728492542795,0.081996,61771.0,61770.0,0.3462192]
[1728492543097,0.081996,61771.0,61770.0,0.081398]
[1728492543307,0.03335777,61771.0,61770.0,0.34541669]
[1728492543498,0.19,61773.0,61770.0,0.26441869]
[1728492543697,0.270994,61773.0,61772.0,0.080995]
[1728492543900,0.270994,61773.0,61772.0,0.34501369]
[1728492544491,0.270994,61773.0,61772.0,0.34497369]
[1728492544905,0.271994,61773.0,61772.0,0.34497369]
[1728492545595,0.271994,61773.0,61772.0,0.26601869]
[1728492545795,0.77136526,61773.0,61772.0,0.26601869]
[1728492546203,2.27236526,61773.0,61772.0,0.002]
[1728492546699,0.77236526,61773.0,61772.0,0.002]
[1728492546901,0.77236526,61773.0,61772.0,0.003]
[1728492547104,0.272994,61773.0,61772.0,0.083995]
[1728492548103,0.272994,61773.0,61772.0,0.003]
[1728492550317,0.272994,61773.0,61772.0,0.083995]
[1728492550898,0.272994,61773.0,61772.0,0.003]
[1728492551407,1.50088,61777.0,61772.0,0.759635]
[1728492551408,0.00088,61777.0,61772.0,0.759635]
[1728492551602,0.3608,61781.0,61777.0,0.080985]
[1728492551603,0.080987,61778.0,61777.0,0.080985]
[1728492551810,1.580987,61778.0,61777.0,0.080985]
[1728492552798,0.3608,61781.0,61780.0,0.080984]
[1728492552799,0.441783,61781.0,61780.0,0.080984]
[1728492553003,0.080983,61781.0,61780.0,0.080984]
[1728492553213,1.52424935,61781.0,61780.0,0.34435142]
[1728492553411,1.5,61781.0,61780.0,0.51072979]
[1728492553702,0.09251944,61784.0,61783.0,0.080981]
[1728492553910,0.00242874,61787.0,61783.0,0.62360658]
[1728492554110,0.00242874,61787.0,61780.0,0.57124503]
[1728492554111,0.08340474,61787.0,61786.0,0.080977]
[1728492554310,0.08340474,61787.0,61786.0,0.34434442]
[1728492554908,0.00242874,61787.0,61786.0,0.34434442]
[1728492555110,0.00242874,61787.0,61786.0,0.62291321]
[1728492555307,0.0004,61788.0,61786.0,0.78969976]
[1728492555504,0.0004,61788.0,61787.0,0.50987476]
[1728492555710,0.080968,61793.0,61787.0,0.50987476]
[1728492555711,0.09210103,61794.0,61793.0,0.080967]
[1728492555914,0.09210103,61794.0,61793.0,0.34433442]
[1728492555915,0.080967,61794.0,61793.0,0.34433442]
[1728492556310,0.080967,61794.0,61793.0,0.26336742]
[1728492556705,0.080967,61794.0,61793.0,0.12015147]
[1728492556911,1.580967,61794.0,61793.0,0.21709066]
[1728492557106,1.580967,61794.0,61793.0,0.21657566]
[1728492557306,1.580967,61794.0,61793.0,0.21857566]
[1728492557512,1.580967,61794.0,61793.0,0.12163647]
[1728492558814,1.581967,61794.0,61793.0,0.11963647]
[1728492560106,1.501,61794.0,61793.0,0.11967259]
[1728492560307,0.080974,61788.0,61787.0,0.0004]
[1728492560512,0.441774,61788.0,61787.0,0.0004]
[1728492560718,0.94114526,61788.0,61787.0,0.0004]
[1728492561423,1.06114526,61788.0,61787.0,0.0004]
[1728492562009,1.06214526,61788.0,61787.0,0.0034]
[1728492563618,1.06114526,61788.0,61787.0,0.0004]
[1728492563821,1.06214526,61788.0,61787.0,0.0004]
[1728492567622,1.07358452,61788.0,61787.0,0.0004]
[1728492568227,1.14454365,61788.0,61787.0,0.0004]
[1728492569320,1.10487523,61788.0,61787.0,0.0004]
[1728492570021,1.07358452,61788.0,61787.0,0.0004]
[1728492570222,1.10487535,61788.0,61787.0,0.0004]
[1728492571425,1.15292238,61788.0,61787.0,0.0004]
[1728492571621,1.14454456,61788.0,61787.0,0.0004]
[1728492573023,0.69489499,61788.0,61787.0,0.0004]
[1728492573921,0.88489499,61788.0,61787.0,0.0004]
[1728492574227,1.04371369,61788.0,61787.0,0.0004]
[1728492574427,0.88489499,61788.0,61787.0,0.0004]
[1728492574622,1.04372104,61788.0,61787.0,0.0004]
[1728492575129,0.76489499,61788.0,61787.0,0.0004]
[1728492575623,0.92372104,61788.0,61787.0,0.0004]
[1728492575819,0.92370897,61788.0,61787.0,0.0004]
[1728492576123,0.76488292,61788.0,61787.0,0.0004]
[1728492576331,0.64421326,61788.0,61787.0,0.0004]
[1728492577020,1.24358452,61788.0,61787.0,0.0004]
[1728492579331,1.24158452,61788.0,61787.0,0.0004]
[1728492581827,0.74221326,61788.0,61787.0,0.0004]
[1728492582027,0.64221326,61788.0,61787.0,0.0004]
[1728492582832,0.45221326,61788.0,61787.0,0.0004]
[1728492583427,0.63097861,61788.0,61787.0,0.0002809]
[1728492583937,0.63097861,61788.0,61787.0,0.0001971]
[1728492584535,0.83760256,61788.0,61787.0,0.0811721]
[1728492585035,0.83760256,61788.0,61787.0,0.0001971]
[1728492586233,0.63097861,61788.0,61787.0,0.0001971]
[1728492586431,0.83762738,61788.0,61787.0,0.0001971]
[1728492587331,1.02762738,61788.0,61787.0,0.0001971]
[1728492587525,0.82097861,61788.0,61787.0,0.0001971]
[1728492588329,1.32034987,61788.0,61787.0,0.0001971]
[1728492589832,1.32034987,61788.0,61787.0,0.00013804]
[1728492590934,0.82097861,61788.0,61787.0,0.00013804]
[1728492591335,1.06261052,61788.0,61781.0,0.06464149]
[1728492591546,1.06261052,61788.0,61781.0,0.14562349]
[1728492591547,0.081382,61782.0,61781.0,0.14562349]
[1728492592437,0.081382,61782.0,61781.0,0.080982]
[1728492592642,0.081382,61782.0,61781.0,0.083982]
[1728492592942,0.081382,61782.0,61781.0,0.085982]
[1728492593243,0.082382,61782.0,61781.0,0.085982]
[1728492593444,0.083382,61782.0,61781.0,0.15073431]
[1728492594046,0.083382,61782.0,61781.0,0.085982]
[1728492595341,0.083382,61782.0,61781.0,0.005]
[1728492596846,0.083382,61782.0,61781.0,0.571583]
[1728492597045,0.083382,61782.0,61781.0,0.085983]
[1728492597246,0.083382,61782.0,61781.0,0.571583]
[1728492598337,0.04285932,61782.0,61781.0,0.69144986]
[1728492599246,0.04285932,61782.0,61781.0,0.78838905]
[1728492599438,0.04285932,61782.0,61781.0,0.69144986]
[1728492599948,0.04285932,61782.0,61781.0,0.78838905]
[1728492600139,0.04285932,61782.0,61781.0,0.12486686]
[1728492600541,0.04285932,61782.0,61781.0,0.12462231]
[1728492601842,0.54223058,61782.0,61781.0,0.005]
[1728492602140,0.64223058,61782.0,61781.0,0.005]
[1728492606251,0.54223058,61782.0,61781.0,0.1507533]
[1728492606439,0.91100978,61782.0,61781.0,0.005]
[1728492606746,0.91100978,61782.0,61781.0,0.00359328]
[1728492611651,1.01100978,61782.0,61781.0,0.00359328]
[1728492612450,0.17335874,61782.0,61781.0,0.00359328]
[1728492612654,0.18118347,61782.0,61781.0,0.08457628]
[1728492612861,0.18118347,61782.0,61781.0,0.18537628]
[1728492613456,0.06050126,61782.0,61781.0,0.30489871]
[1728492613957,0.06050126,61782.0,61781.0,0.18537628]
[1728492614857,0.14148326,61782.0,61781.0,0.08457628]
[1728492615166,0.14148326,61782.0,61781.0,0.00359328]
[1728492615551,0.14148326,61782.0,61781.0,0.08457628]
[1728492616565,0.083382,61782.0,61781.0,0.08457628]
[1728492616960,0.083382,61782.0,61781.0,0.00359328]
[1728492617167,0.58275326,61782.0,61781.0,0.00359328]
[1728492618559,0.69275326,61782.0,61781.0,0.00359328]
[1728492621869,0.7038324,61782.0,61781.0,0.00359328]
[1728492628775,2.2038324,61782.0,61781.0,0.00359328]
[1728492631670,2.0938324,61782.0,61781.0,0.00359328]
[1728492631873,0.5938324,61782.0,61781.0,0.00359328]
[1728492633164,0.5938324,61782.0,61781.0,0.08457628]
[1728492633165,0.01347914,61782.0,61781.0,0.08457628]
[1728492633366,0.0024,61782.0,61781.0,0.08457628]
[1728492635878,0.0024,61782.0,61781.0,0.20412937]
[1728492636362,0.0024,61782.0,61781.0,0.32412937]
[1728492636560,0.07335296,61782.0,61781.0,0.08364852]
[1728492636759,0.0038,61791.0,61781.0,0.08364852]
[1728492636760,0.0038,61791.0,61781.0,1.04444852]
[1728492637065,0.08937659,61790.0,61789.0,0.080973]
[1728492637262,0.08937659,61790.0,61782.0,0.080982]
[1728492637570,0.08937659,61790.0,61783.0,0.080979]
[1728492637571,0.080982,61784.0,61783.0,0.080979]
[1728492637973,0.080982,61785.0,61782.0,0.12]
[1728492637974,0.080981,61783.0,61782.0,0.12]
[1728492638271,0.080982,61782.0,61781.0,0.085103]
[1728492638479,0.080982,61782.0,61781.0,0.083383]
[1728492638866,0.080982,61782.0,61781.0,0.082383]
[1728492639372,0.080982,61782.0,61781.0,0.202383]
[1728492639674,0.081982,61782.0,61781.0,0.202383]
[1728492639865,0.14007496,61782.0,61781.0,0.202383]
[1728492640466,0.14107496,61782.0,61781.0,0.202383]
[1728492640663,0.14107496,61782.0,61781.0,0.563183]
[1728492640872,0.14107496,61782.0,61781.0,0.687983]
[1728492640873,0.002,61782.0,61781.0,0.687983]
[1728492641972,0.05171225,61782.0,61781.0,0.687983]
[1728492642166,0.002,61782.0,61781.0,0.687983]
[1728492643172,0.1593072,61790.0,61782.0,0.48556]
[1728492643372,0.080966,61795.0,61794.0,0.080965]
[1728492643782,0.0004,61796.0,61795.0,0.080965]
[1728492643973,0.0004,61796.0,61795.0,0.200965]
[1728492644471,0.0004,61796.0,61795.0,0.270965]
[1728492644973,0.0014,61796.0,61795.0,0.270965]
[1728492645584,0.0004,61796.0,61795.0,0.272965]
[1728492646584,0.0004,61796.0,61795.0,0.275965]
[1728492647382,0.0004,61796.0,61795.0,0.276965]
[1728492649777,0.081363,61796.0,61795.0,0.086965]
[1728492650078,0.77073426,61796.0,61795.0,0.006]
[1728492650271,0.081363,61796.0,61795.0,0.196]
[1728492650476,0.081363,61796.0,61795.0,0.276965]
[1728492652380,0.081363,61796.0,61795.0,0.196]
[1728492652690,0.58073426,61796.0,61795.0,0.006]
[1728492656892,1.5158407,61804.0,61795.0,1.65039328]
[1728492657080,0.0004,61816.0,61815.0,0.080939]
[1728492657281,0.0004,61816.0,61815.0,0.270939]
[1728492658385,0.084337,61816.0,61815.0,0.080939]
[1728492658790,0.23173006,61816.0,61815.0,0.080939]
[1728492659987,0.22873006,61816.0,61815.0,0.080939]
[1728492660184,0.080942,61813.0,61812.0,0.08094]
[1728492660379,0.080945,61810.0,61809.0,0.0162]
[1728492660585,0.080945,61810.0,61809.0,0.01312691]
[1728492660586,0.46957953,61810.0,61809.0,0.01312691]
[1728492660794,0.92200611,61810.0,61809.0,0.01312691]
[1728492661691,0.92200611,61810.0,61809.0,0.01612691]
[1728492661889,1.12887011,61810.0,61809.0,0.01612691]
[1728492662590,1.12887011,61810.0,61802.0,0.00242657]
[1728492662785,0.63175,61806.0,61802.0,0.00242657]
[1728492662987,0.080954,61803.0,61802.0,0.00242657]
[1728492663179,1.72835385,61803.0,61802.0,0.00242657]
[1728492663384,2.19847001,61803.0,61802.0,0.00242657]
[1728492664489,0.69847001,61803.0,61802.0,0.00242657]
[1728492664694,0.63201511,61803.0,61802.0,0.00242657]
[1728492664893,0.08933166,61803.0,61802.0,0.19]
[1728492665096,0.0004,61806.0,61802.0,0.270956]
[1728492665390,0.206864,61814.0,61813.0,0.080941]
[1728492665593,0.40366126,61814.0,61813.0,0.270941]
[1728492665793,0.080933,61819.0,61815.0,0.080939]
[1728492666098,0.40406126,61816.0,61815.0,0.080939]
[1728492666287,0.0004,61816.0,61815.0,0.080939]
[1728492666991,0.0114,61816.0,61815.0,0.081939]
[1728492668087,0.0234,61816.0,61815.0,0.081939]
[1728492669685,0.0124,61816.0,61815.0,0.080939]
[1728492670097,0.0004,61816.0,61815.0,0.080939]
[1728492675607,0.0962,61830.0,61817.0,0.0133626]
[1728492675789,0.0004,61836.0,61825.0,0.19]
[1728492675790,0.0075,61828.0,61825.0,0.19]
[1728492675991,0.40366126,61834.0,61833.0,0.080915]
[1728492676196,0.40366126,61834.0,61833.0,0.270915]
[1728492676392,0.01157715,61835.0,61834.0,0.080914]
[1728492676596,0.48457326,61835.0,61834.0,0.080914]
[1728492677398,0.0004,61836.0,61835.0,0.080912]
[1728492677600,0.0004,61836.0,61835.0,0.566072]
[1728492679217,0.082311,61836.0,61835.0,0.087912]
[1728492679390,0.48597226,61836.0,61835.0,0.007]
[1728492679593,0.84677226,61836.0,61835.0,0.007]
[1728492679799,0.97077226,61836.0,61835.0,0.007]
[1728492680096,0.97077226,61836.0,61830.0,0.01336]
[1728492680097,0.080918,61831.0,61830.0,0.01336]
[1728492680295,0.631718,61831.0,61825.0,0.0004]
[1728492680501,0.441724,61826.0,61825.0,0.0004]
[1728492680991,0.080932,61820.0,61813.0,0.080941]
[1728492681196,1.05919711,61826.0,61812.0,0.21159123]
[1728492681197,0.22831783,61819.0,61818.0,0.080934]
[1728492681401,0.22831783,61819.0,61817.0,0.01619]
[1728492681402,0.21381185,61819.0,61817.0,0.01619]
[1728492681702,0.29514685,61818.0,61817.0,0.097125]
[1728492682916,0.29614685,61818.0,61817.0,0.101125]
[1728492683105,0.21521185,61818.0,61817.0,0.101125]
[1728492683305,0.21521185,61818.0,61817.0,0.291125]
[1728492683512,0.14878283,61818.0,61817.0,0.291125]
[1728492683692,0.21521185,61818.0,61817.0,0.291125]
[1728492683898,0.14878283,61818.0,61817.0,0.295125]
[1728492684095,0.21521185,61818.0,61817.0,0.295125]
[1728492684504,0.21421185,61818.0,61817.0,0.291125]
[1728492684709,0.21421185,61818.0,61817.0,0.294125]
[1728492685797,0.14778283,61818.0,61817.0,0.294125]
[1728492685996,0.14778619,61818.0,61817.0,0.294125]
[1728492687005,0.14778619,61818.0,61817.0,0.007]
[1728492687210,0.14778619,61818.0,61817.0,0.087936]
[1728492688206,0.14778903,61818.0,61817.0,0.087936]
[1728492688911,0.04968917,61818.0,61817.0,0.21129869]
[1728492689105,0.3608,61820.0,61818.0,0.080934]
[1728492689308,0.76446126,61820.0,61818.0,0.080934]
[1728492690211,0.76446126,61820.0,61819.0,0.080933]
[1728492690804,0.40366126,61820.0,61819.0,0.080933]
[1728492691303,0.40366126,61820.0,61819.0,0.081933]
[1728492691814,0.34696193,61820.0,61819.0,0.16459477]
[1728492692012,0.34696193,61820.0,61819.0,0.083933]
[1728492692314,0.34696193,61820.0,61819.0,0.16459477]
[1728492692608,0.34696193,61820.0,61819.0,0.39729088]
[1728492692808,0.3608,61826.0,61825.0,0.080926]
[1728492693014,0.34696193,61826.0,61825.0,0.47489935]
[1728492693413,0.34696193,61826.0,61825.0,0.47492781]
[1728492693607,1.08868593,61826.0,61825.0,0.20400253]
[1728492693813,1.08868593,61826.0,61823.0,0.06452622]
[1728492694116,0.080927,61824.0,61823.0,0.06452622]
[1728492694318,1.700927,61824.0,61823.0,0.06452622]
[1728492694512,1.700927,61824.0,61821.0,0.01619]
[1728492694513,0.080929,61822.0,61821.0,0.01619]
[1728492694713,0.380929,61822.0,61821.0,0.01619]
[1728492695011,0.72829093,61822.0,61821.0,0.08075884]
[1728492695213,0.080931,61821.0,61820.0,0.04842742]
[1728492695415,0.080931,61821.0,61808.0,0.0038]
[1728492695416,0.080932,61820.0,61808.0,0.0038]
[1728492695620,0.080932,61820.0,61809.0,0.12338131]
[1728492695621,0.080945,61811.0,61809.0,0.12338131]
[1728492695808,0.3883,61810.0,61805.0,0.11338413]
[1728492696009,0.19,61806.0,61805.0,0.01659]
[1728492696214,0.03964881,61806.0,61805.0,0.01659]
[1728492696419,0.38661074,61806.0,61805.0,0.01659]
[1728492697717,0.38761074,61806.0,61805.0,0.02059]
[1728492697911,0.38861074,61806.0,61805.0,0.02859]
[1728492698417,0.57861074,61806.0,61805.0,0.02859]
[1728492698722,0.080952,61805.0,61795.0,0.081364]
[1728492698925,0.080952,61805.0,61795.0,0.0004]
[1728492698926,0.51726266,61805.0,61795.0,0.0004]
[1728492699113,0.43631066,61805.0,61795.0,0.0004]
[1728492699310,0.19,61797.0,61795.0,0.0004]
[1728492699616,0.03964881,61796.0,61795.0,0.0004]
[1728492700122,0.38661074,61796.0,61795.0,0.0004]
[1728492700309,0.46757374,61796.0,61795.0,0.0004]
[1728492700618,0.38661074,61796.0,61795.0,0.0084]
[1728492700914,0.38761074,61796.0,61795.0,0.0084]
[1728492701111,0.38761074,61796.0,61795.0,0.0004]
[1728492701311,0.38861074,61796.0,61795.0,0.0084]
[1728492701822,0.38861074,61796.0,61795.0,0.089365]
[1728492702419,0.34896193,61796.0,61795.0,0.089365]
[1728492704127,0.34896193,61796.0,61795.0,0.21277359]
[1728492704608,0.29224167,61796.0,61795.0,0.21277359]
[1728492705025,0.29224167,61796.0,61795.0,0.089365]
[1728492707826,0.29224167,61796.0,61795.0,0.0084]
[1728492708023,0.002,61796.0,61795.0,0.20635726]
[1728492708225,0.1035,61810.0,61795.0,0.20635726]
[1728492708226,0.0075,61810.0,61809.0,0.080946]
[1728492708418,0.00242715,61819.0,61818.0,0.080935]
[1728492708617,0.29266882,61819.0,61818.0,0.20429789]
[1728492708818,0.29266882,61819.0,61818.0,0.20429887]
[1728492709130,0.29266882,61819.0,61818.0,0.12336387]
[1728492710820,0.29566882,61819.0,61818.0,0.12336387]
[1728492711020,0.29566882,61819.0,61818.0,0.080935]
[1728492711314,0.29866882,61819.0,61818.0,0.080935]
[1728492712224,0.29566882,61819.0,61818.0,0.002]
[1728492713016,0.29266882,61819.0,61818.0,0.004]
[1728492715424,0.37360182,61819.0,61818.0,0.004]
[1728492717227,0.29266882,61819.0,61818.0,0.084935]
[1728492718322,0.40266882,61819.0,61818.0,0.004]
[1728492718624,0.40266882,61819.0,61818.0,0.003]
[1728492719017,0.00242715,61819.0,61818.0,0.083935]
[1728492719619,0.00242715,61819.0,61818.0,0.081935]
[1728492719817,0.00242715,61819.0,61818.0,0.083935]
[1728492720221,0.00242715,61819.0,61818.0,0.081935]
[1728492720519,0.00242715,61819.0,61818.0,0.083935]
[1728492720721,0.47360182,61819.0,61818.0,0.003]
[1728492726528,0.080948,61808.0,61804.0,0.0113]
[1728492726736,0.08095,61806.0,61804.0,0.00188]
[1728492727034,0.23060325,61806.0,61804.0,0.00188]
[1728492727332,0.50465492,61806.0,61804.0,0.00188]
[1728492727833,2.00465492,61806.0,61805.0,0.00382664]
[1728492728736,2.00565492,61806.0,61805.0,0.00382664]
[1728492728926,2.00665492,61806.0,61805.0,0.00382664]
[1728492729126,2.00665492,61806.0,61795.0,0.01659]
[1728492729127,0.080962,61797.0,61795.0,0.01659]
[1728492729438,0.0004,61796.0,61795.0,0.01659]
[1728492729827,0.27445167,61796.0,61795.0,0.01659]
[1728492730130,0.27445167,61796.0,61795.0,0.097555]
[1728492731134,0.27545167,61796.0,61795.0,0.097555]
[1728492731529,0.27645167,61796.0,61795.0,0.097555]
[1728492733236,0.17111405,61796.0,61795.0,0.31757924]
[1728492733434,0.17111405,61796.0,61795.0,0.31797924]
[1728492734237,0.002,61796.0,61795.0,0.31797924]
[1728492734434,0.002,61796.0,61795.0,0.58216208]
[1728492734629,0.3265,61812.0,61808.0,0.080948]
[1728492734834,0.31193489,61809.0,61808.0,0.080948]
[1728492735446,0.14282084,61809.0,61808.0,0.080948]
[1728492735732,0.14382084,61809.0,61808.0,0.080948]
[1728492736329,0.14482084,61809.0,61808.0,0.081948]
[1728492736822,0.14482084,61809.0,61808.0,0.098138]
[1728492738529,0.002,61809.0,61808.0,0.098138]
[1728492740642,0.25206005,61809.0,61808.0,0.098138]
[1728492740843,0.25206005,61809.0,61808.0,0.01719]
[1728492742328,1.75206005,61809.0,61808.0,0.01719]
[1728492743739,1.7614491,61809.0,61808.0,0.01719]
[1728492744428,1.8814491,61809.0,61808.0,0.01719]
[1728492747142,1.8814491,61809.0,61808.0,0.098138]
[1728492748141,1.84093985,61809.0,61808.0,0.098138]
[1728492749243,1.84093985,61809.0,61808.0,0.01719]
[1728492749547,2.92629985,61809.0,61808.0,0.01719]
[1728492750945,2.92629985,61809.0,61808.0,0.001]
[1728492755042,2.44093985,61809.0,61808.0,0.001]
[1728492755247,2.92629985,61809.0,61808.0,0.001]
[1728492755448,1.84093985,61809.0,61808.0,0.001]
[1728492755950,2.92629985,61809.0,61808.0,0.001]
[1728492758047,0.34093985,61809.0,61808.0,0.001]
[1728492758553,0.34093985,61809.0,61808.0,0.1243992]
[1728492759845,1.84093985,61809.0,61808.0,0.1243992]
[1728492760547,1.84093985,61809.0,61808.0,0.20515679]
[1728492760744,1.84093985,61809.0,61808.0,0.08175759]
[1728492760944,1.84093985,61809.0,61808.0,0.001]
[1728492761442,2.92629985,61809.0,61807.0,0.06461314]
[1728492761752,0.080949,61807.0,61806.0,0.06461506]
[1728492761940,0.080949,61807.0,61795.0,0.01699]
[1728492761941,0.390949,61807.0,61801.0,0.08075759]
[1728492762141,0.080962,61797.0,61796.0,0.04694482]
[1728492762347,0.541762,61797.0,61796.0,0.12341464]
[1728492763244,0.4608,61797.0,61795.0,0.01699]
[1728492763950,0.543762,61797.0,61796.0,0.002]
[1728492764551,0.080963,61796.0,61795.0,0.01799]
[1728492764755,0.786943,61796.0,61795.0,0.0028]
[1728492764949,0.080975,61787.0,61786.0,0.0038]
[1728492765153,0.5508,61787.0,61786.0,0.12343455]
[1728492765359,0.080977,61786.0,61781.0,0.01659]
[1728492765557,2.0512,61787.0,61786.0,0.080977]
[1728492765558,1.86216001,61787.0,61786.0,0.080977]
[1728492765851,1.86216001,61787.0,61786.0,0.20441296]
[1728492765852,0.0004,61787.0,61786.0,0.20441296]
[1728492766056,0.0042,61796.0,61786.0,0.20441296]
[1728492766255,1.580966,61795.0,61792.0,0.080968]
[1728492766456,1.580966,61795.0,61793.0,0.104]
[1728492766648,0.080966,61794.0,61793.0,0.104]
[1728492766844,0.080966,61794.0,61793.0,0.2272407]
[1728492767352,0.080966,61794.0,61793.0,0.3082077]
[1728492767353,1.5,61794.0,61793.0,0.3082077]
[1728492767560,1.580966,61794.0,61793.0,0.3082077]
[1728492768144,1.581966,61794.0,61793.0,0.3082077]
[1728492769749,1.581966,61794.0,61793.0,0.2272407]
[1728492771653,0.270975,61787.0,61786.0,0.0004]
[1728492771959,0.080975,61787.0,61786.0,0.0004]
[1728492772351,0.631775,61787.0,61786.0,0.0004]
[1728492772551,0.632775,61787.0,61786.0,0.0004]
[1728492772965,0.64210864,61787.0,61786.0,0.0004]
[1728492773159,0.64310864,61787.0,61786.0,0.0004]
[1728492775558,0.76310864,61787.0,61786.0,0.0004]
[1728492775862,0.45310864,61787.0,61786.0,0.081377]
[1728492777062,0.45310864,61787.0,61786.0,0.0004]
[1728492778353,0.3628,61787.0,61786.0,0.27112278]
[1728492778557,1.86164,61794.0,61786.0,1.62765978]
[1728492778861,0.080967,61795.0,61794.0,0.080966]
[1728492779059,0.080967,61795.0,61794.0,0.35168878]
[1728492779853,0.161935,61795.0,61794.0,0.35168878]
[1728492780162,0.161935,61795.0,61794.0,0.27072278]
[1728492780958,0.351935,61795.0,61794.0,0.12342724]
[1728492781364,0.471935,61795.0,61794.0,0.12342724]
[1728492781551,0.684935,61795.0,61794.0,0.12342724]
[1728492782159,2.184935,61795.0,61794.0,0.12342724]
[1728492782659,0.080971,61790.0,61789.0,0.09695335]
[1728492782860,0.631771,61790.0,61789.0,0.12316589]
[1728492783259,2.131771,61790.0,61789.0,0.12316589]
[1728492783562,2.131771,61790.0,61789.0,0.22011924]
[1728492783761,2.132771,61790.0,61789.0,0.22211924]
[1728492783963,2.132771,61790.0,61789.0,0.12516589]
[1728492784666,2.133771,61790.0,61789.0,0.22411924]
[1728492784864,2.133771,61790.0,61789.0,0.12716589]
[1728492785059,2.133771,61790.0,61789.0,0.22411924]
[1728492785453,2.133771,61790.0,61789.0,0.12716589]
[1728492785454,2.173771,61790.0,61789.0,0.12716589]
[1728492785658,2.173771,61790.0,61789.0,0.004]
[1728492786560,2.659291,61790.0,61789.0,0.004]
[1728492786858,0.080975,61787.0,61786.0,0.0004]
[1728492787170,0.190975,61787.0,61786.0,0.0004]
[1728492788170,0.191975,61787.0,61786.0,0.0014]
[1728492788966,0.192975,61787.0,61786.0,0.0014]
[1728492791371,0.382975,61787.0,61786.0,0.0014]
[1728492793359,0.34244995,61787.0,61786.0,0.1248393]
[1728492795257,0.34244995,61787.0,61786.0,0.1245815]
[1728492798959,0.28571612,61787.0,61786.0,0.22153485]
[1728492799266,0.17669112,61787.0,61786.0,0.22153485]
[1728492800074,0.17669112,61787.0,61786.0,0.22114887]
[1728492800275,0.17669112,61787.0,61786.0,0.22123611]
[1728492801574,0.17669112,61787.0,61786.0,0.0014]
[1728492801575,0.24764608,61787.0,61786.0,0.0014]
[1728492802567,0.29736483,61787.0,61786.0,0.0014]
[1728492803365,0.24764608,61787.0,61786.0,0.0014]
[1728492805069,0.29736501,61787.0,61786.0,0.0014]
[1728492805371,0.24764619,61787.0,61786.0,0.0014]
[1728492806270,0.29736501,61787.0,61786.0,0.0014]
[1728492806474,0.07295507,61787.0,61786.0,0.082377]
[1728492806868,0.03328892,61787.0,61786.0,1.271337]
[1728492807468,0.002,61787.0,61786.0,1.271337]
[1728492808480,0.002,61787.0,61786.0,1.49072684]
[1728492808669,0.272975,61787.0,61786.0,0.12374925]
[1728492808864,0.272975,61787.0,61786.0,0.08224446]
[1728492809069,0.272975,61787.0,61786.0,0.0014]
[1728492809665,0.28226619,61787.0,61786.0,0.0014]
[1728492811874,0.40226619,61787.0,61786.0,0.0014]
[1728492816483,0.58103807,61787.0,61786.0,0.00106854]
[1728492819677,0.58104008,61787.0,61786.0,0.00106854]
[1728492821682,0.39104008,61787.0,61786.0,0.00106854]
[1728492823074,0.58104008,61787.0,61786.0,0.00106854]
[1728492823503,0.40226619,61787.0,61786.0,0.00106854]
[1728492823683,0.21226619,61787.0,61786.0,0.20473997]
[1728492823880,0.21226619,61787.0,61786.0,0.12389551]
[1728492824683,0.21226619,61787.0,61786.0,0.12375777]
[1728492825185,0.21226619,61787.0,61786.0,0.20473477]
[1728492825386,0.21226619,61787.0,61786.0,0.12375777]
[1728492826289,0.21226619,61787.0,61786.0,0.00106854]
[1728492827293,0.21226619,61787.0,61786.0,0.1237382]
[1728492830388,0.21226619,61787.0,61786.0,0.00106854]
[1728492833191,0.40226619,61787.0,61786.0,0.00106854]
[1728492833393,0.43355818,61787.0,61786.0,0.00106854]
[1728492833793,1.90226619,61787.0,61786.0,0.00106854]
[1728492834399,1.93355842,61787.0,61786.0,0.00106854]
[1728492834592,1.90226619,61787.0,61786.0,0.00106854]
[1728492835997,1.71226619,61787.0,61786.0,0.00106854]
[1728492836193,1.90226619,61787.0,61786.0,0.00106854]
[1728492837003,1.71226619,61787.0,61786.0,0.00106854]
[1728492837195,1.90226619,61787.0,61786.0,0.00106854]
[1728492838496,2.08104375,61787.0,61786.0,0.00106854]
[1728492838702,1.89104375,61787.0,61786.0,0.00106854]
[1728492838914,2.08104375,61787.0,61786.0,0.00106854]
[1728492839104,2.02294522,61787.0,61786.0,0.00106854]